Workbook

Sheet Wydatki
B1: Budżet wydarzenia [Nazwa wydarzenia] | H1: WYDATKI
B3: SUMA WYDATKÓW | G3: Szacowane | H3: Rzeczywiste
G4: =SUM(C11,C19,C25,C32,G11,G19,G24) -> 882.00 zł | H4: =SUM(D11,D19,D25,D32,H11,H19,H24) -> 333.00 zł
B6: Miejsce | C6: Szacowane | D6: Rzeczywiste | F6: Poczęstunek | G6: Szacowane | H6: Rzeczywiste
B7: Opłaty za pomieszczenia | C7: 500.00 zł | F7: Żywność
B8: Personel na miejscu | F8: Napoje | G8: 20.00 zł
B9: Wyposażenie | F9: Obrusy | H9: 20.00 zł
B10: Stoły i krzesła | F10: Personel i napiwki
B11: Suma | C11: =SUBTOTAL(109,Tabela_1[Szacowane]) -> 500.00 zł | D11: =SUBTOTAL(109,Tabela_1[Rzeczywiste]) -> 0.00 zł | F11: Suma | G11: =SUBTOTAL(109,Tabela_3[Szacowane]) -> 20.00 zł | H11: =SUBTOTAL(109,Tabela_3[Rzeczywiste]) -> 20.00 zł
B13: Dekoracje | C13: Szacowane | D13: Rzeczywiste | F13: Program | G13: Szacowane | H13: Rzeczywiste
B14: Kwiaty | C14: 200.00 zł | D14: 300.00 zł | F14: Artyści
B15: Świece | F15: Prelegenci | G15: 30.00 zł
B16: Oświetlenie | F16: Podróże
B17: Balony | F17: Hotel
B18: Materiały papiernicze | F18: Inne
B19: Suma | C19: =SUBTOTAL(109,Tabela_4[Szacowane]) -> 200.00 zł | D19: =SUBTOTAL(109,Tabela_4[Rzeczywiste]) -> 300.00 zł | F19: Suma | G19: =SUBTOTAL(109,Tabela_5[Szacowane]) -> 30.00 zł | H19: =SUBTOTAL(109,Tabela_5[Rzeczywiste]) -> 0.00 zł
B21: Promocja | C21: Szacowane | D21: Rzeczywiste | F21: Nagrody | G21: Szacowane | H21: Rzeczywiste
B22: Prace graficzne | F22: Wstęgi/Odznaki/Trofea
B23: Fotokopie/druk | C23: 20.00 zł | F23: Prezenty | G23: 100.00 zł
B24: Opłaty pocztowe | F24: Suma | G24: =SUBTOTAL(109,Tabela_7[Szacowane]) -> 100.00 zł | H24: =SUBTOTAL(109,Tabela_7[Rzeczywiste]) -> 0.00 zł
B25: Suma | C25: =SUBTOTAL(109,Tabela_6[Szacowane]) -> 20.00 zł | D25: =SUBTOTAL(109,Tabela_6[Rzeczywiste]) -> 0.00 zł
B27: Różne | C27: Szacowane | D27: Rzeczywiste
B28: Telefon | D28: 13.00 zł
B29: Transport | C29: 12.00 zł
B30: Materiały biurowe
B31: Usługi faksowe
B32: Suma | C32: =SUBTOTAL(109,Tabela_8[Szacowane]) -> 12.00 zł | D32: =SUBTOTAL(109,Tabela_8[Rzeczywiste]) -> 13.00 zł

Sheet Przychód
B1: Budżet wydarzenia [Nazwa wydarzenia] | G1: PRZYCHÓD
B3: ŁĄCZNY PRZYCHÓD | F3: Szacowane | G3: Rzeczywiste
F4: =SUM(F11, F18, F25, F33) -> 1,936.00 zł | G4: =SUM(G11,G18,G25, G33) -> 1,831.00 zł
B6: BILETY WSTĘPU
B7: Liczba szacowana | C7: Liczba rzeczywista | D7: Typ | E7: Cena | F7: Szacowany przychód | G7: Rzeczywisty przychód
B8: 300 | C8: 278 | D8: Dorośli w cenie | E8: 5.00 zł | F8: =B8*E8 -> 1,500.00 zł | G8: =C8*E8 -> 1,390.00 zł
B9: 197 | C9: 195 | D9: Dzieci w cenie | E9: 2.00 zł | F9: =B9*E9 -> 394.00 zł | G9: =C9*E9 -> 390.00 zł
B10: 42 | C10: 51 | D10: Inne w cenie | E10: 1.00 zł | F10: =B10*E10 -> 42.00 zł | G10: =C10*E10 -> 51.00 zł
B11: Suma | F11: =SUBTOTAL(109,Tabela_9[Szacowany przychód]) -> 1,936.00 zł | G11: =SUBTOTAL(109,Tabela_9[Rzeczywisty przychód]) -> 1,831.00 zł
B13: REKLAMY W PROGRAMIE
B14: Liczba szacowana | C14: Liczba rzeczywista | D14: Typ | E14: Cena | F14: Szacowany przychód | G14: Rzeczywisty przychód
B15: 12 | D15: Okładki w cenie | F15: =B15*E15 -> 0.00 zł | G15: =C15*E15 -> 0.00 zł
C16: 158 | D16: Połowy stron w cenie | F16: =B16*E16 -> 0.00 zł | G16: =C16*E16 -> 0.00 zł
B17: 4 | D17: Ćwiartki stron w cenie | F17: =B17*E17 -> 0.00 zł | G17: =C17*E17 -> 0.00 zł
B18: Suma | F18: =SUBTOTAL(109,Tabela_10[Szacowany przychód]) -> 0.00 zł | G18: =SUBTOTAL(109,Tabela_10[Rzeczywisty przychód]) -> 0.00 zł
B20: WYSTAWCY/SPRZEDAWCY
B21: Liczba szacowana | C21: Liczba rzeczywista | D21: Typ | E21: Cena | F21: Szacowany przychód | G21: Rzeczywisty przychód
B22: 23 | D22: Duże stoiska w cenie | F22: =B22*E22 -> 0.00 zł | G22: =C22*E22 -> 0.00 zł
B23: 354 | D23: Średnie stoiska w cenie | F23: =B23*E23 -> 0.00 zł | G23: =C23*E23 -> 0.00 zł
B24: 56 | D24: Małe stoiska w cenie | F24: =B24*E24 -> 0.00 zł | G24: =C24*E24 -> 0.00 zł
B25: Suma | F25: =SUBTOTAL(109,Tabela_11[Szacowany przychód]) -> 0.00 zł | G25: =SUBTOTAL(109,Tabela_11[Rzeczywisty przychód]) -> 0.00 zł
B27: SPRZEDAŻ PRODUKTÓW
B28: Liczba szacowana | C28: Liczba rzeczywista | D28: Typ | E28: Cena | F28: Szacowany przychód | G28: Rzeczywisty przychód
D29: Produkty w cenie | F29: =B29*E29 -> 0.00 zł | G29: =C29*E29 -> 0.00 zł
B30: 123 | D30: Produkty w cenie | F30: =B30*E30 -> 0.00 zł | G30: =C30*E30 -> 0.00 zł
D31: Produkty w cenie | F31: =B31*E31 -> 0.00 zł | G31: =C31*E31 -> 0.00 zł
B32: 13 | D32: Produkty w cenie | F32: =B32*E32 -> 0.00 zł | G32: =C32*E32 -> 0.00 zł
B33: Suma | F33: =SUBTOTAL(109,Tabela_12[Szacowany przychód]) -> 0.00 zł | G33: =SUBTOTAL(109,Tabela_12[Rzeczywisty przychód]) -> 0.00 zł

Sheet Podsumowanie zysków i strat
B1: Budżet wydarzenia [Nazwa wydarzenia] | G1: ZYSK
G2: zysków i strat
C5: Szacowane | D5: Rzeczywiste
B6: Łączny przychód | C6: =Przychód!F4 -> 1,936.00 zł | D6: =Przychód!G4 -> 1,831.00 zł
B7: Suma wydatków | C7: =Wydatki!G4 -> 882.00 zł | D7: =Wydatki!H4 -> 333.00 zł
B9: Całkowity zysk (lub strata) | C9: =C6-C7 -> 1,054.00 zł | D9: =D6-D7 -> 1,498.00 zł
